Workbook

Sheet Overview
A1: Northern Museum
A2: Prototype Planning Model
A3: BRL 1/13/05
A4: BRL 5/3/05
A5: BRL 9/29/05 | C5: Purposes of the Planning Model
C7: The purposes for developing a 'business planning' model for the Northern Museum is to provide a tool for the Museum Board, Executive
C8: Director and Staff to develop, analyze and modify annual budgets (on a quarterly basis), make forecasts of future costs and revenues, and consider the possible
C9: impacts of major changes to the programs, personnel, capital expenditures or endowment strategies. It should provide the 'big picture' on the Museum financial situation.
C11: This model has been designed and developed by a Spreadsheet Engineering Team at Tuck School at Dartmouth College in collaboration with the Finance
C12: Committee of the Northern Museum. That committee has provided guidance regarding the purposes of the model as well as the principal uses to which
C13: the model is to be used. The model has gone through a number of iterations during 2004 and 2005, and it will be tested against these intended uses as time goes on.
C15: Simplicity is the bottom line of the design. In fact, as one of the Museum Board members said, "It is better to be approximately right, than to be precisely wrong."
C16: The model is just that - a model. It is intended to portray many of the interrelationships that exist among the Museum's programs and operations, expressed through
C17: its finances and financial system. The model is also integrated with the recently revised financial accounting system of the Museum in order to make the
C18: language' and the mathematical relationships within the model as close to the real world as necessary to gain understanding of the causal effects of
C19: Museum decisions. Sensitivity analysis will be encouraged, and space provided for the results of such analysis.
C21: There is no pretense that the model will provide accurate forecasts of the future financial situation of the Museum; however, the model should
C22: provide insight into probable effects on tomorrow of decisions made today. The basic model is specifically designed to portray the normal operations
C23: of the institution without any influence from extraordinary financial commitments or inflows. This basic model will be the focus of attention in the early
C24: design and use to ensure that there is confidence that this version of model has 'integrity' and can be judged sufficiently valid to be useful for the number
C25: of functions for which it is designed.
C27: Once this basic model has been approved and adopted, the model designers will prepare additional spreadsheet modules that will be integrated with the basic
C28: model to permit analysis and evaluation of more sophisticated policy decisions, e.g., the effects of introducing new Museum programs, hiring new staff, engaging in
C29: a capital campaign, and/or investing in new facilities. The expanded model will then become more useful as a forecasting tool, at least reflecting many of the
C30: impacts that should be anticipated with a major financial decision.
C32: The Workbook will also include historical information so that, over time, as new information is gathered and Museum performance monitored, this
C33: information can inform model users regarding assumptions to be used for the future. It is anticipated that the principal interest of model users will be on the
C34: forthcoming three-year period. The model will extend forecasts beyond three years, but it is understood that these longer term forecasts must be viewed
C35: with more caution. The model also includes a sub-model that is to be used during the capital campaign (and will eventually be integrated with the business model).
C37: "I think the most important assumption that | L37: look at the same old numbers, then it will be an exercise in frustration.
C38: must underpin this work is that the museum will exercise both discipline and | L38: I think we are not quite at the level of complete commitment, and probably
C39: informed judgment in the consistent use of the model. This isn't about | L39: won't be until others have time to look at, digest, and understand the
C40: reporting results; it's about planning for and monitoring the financial (and | L40: potential of the model. This would include the new Board leadership; the
C41: programmatic) health of the museum at the strategic and tactical levels. If | L41: management team; and Board committee chairs, at the very least.
C42: we can integrate this model into our strategic planning, with a commitment
C43: from the institution at all levels to apply it, study it, and use it wisely, | L43: - Executive Director, Northern Museum
C44: then it will have tremendous value. If we regard it as just another way to

Sheet Instructions
A1: Northern Museum
A2: Prototype Planning Model
B4: How to use this model:
B6: 1 | C6: The user should first become acquainted with the model, the workbook, and all the worksheets. The purpose of the model is to help with annual and semi-annual planning
B7: 2 | C7: The three principal sheets are Assumptions, Long Term Model, and Short Term Results. The Long Term Model sheet contains the projections that emanate from the assumptions.
C8: The Short Term Results sheet summarizes the information primarily for the one-year and three-year time frame.
C9: It also provides an overview of the differences among the base case as well as Options I and II.
C10: Option I is to be used as a more pessimistic view of the future, while Option II is more optimistic. However, they can be used and defined as the user wishes.
C11: Input into the Assumptions sheet automatically gets translated into the Long Term Model and Short Term Results sheets.
B12: 3 | C12: With this as background, the user focuses on the Assumptions sheet, entering assumptions for the base case and the two options.
C13: Cells in which data is required are in light yellow.
B14: 4 | C14: The Long Term Model and the Short Term Results sheets provide information based on the model and the user's inputs. After reviewing the results, the user may wish to vary assumptions.
B15: 5 | C15: It is suggested that each run of the model be saved and documented [e.g., user initial, date, version #]
B16: 6 | C16: The model should be useful at least twice a year - once when the annual budget is being formulated, and again half way through the year.
C17: However, new information (e.g., past year data) or changes of some magnitude in the Museum's operation should be reflected in the model.
B18: 7 | C18: On the Long Term Model sheet there is a column that uses the information from the past year in Column C.
C19: The Short Term Results sheet uses information projected for the following or current year in Column U.
B20: 8 | C20: Special attention must be given to the Endowment. As of now, there is only one assumption (rate of return), but more is needed in terms of investment management fee,
C21: and other special withdrawals and deposits.

Sheet Log of changes
A1: Northern Museum
A2: Prototype Planning Model
B6: Note: On May 11, 2005 I revised the assumptions and the formulas in the spreadsheet to accomplish the following:
B7: a. We distinguish between gifts that go to pay annual expenses from those that go to the Endowment.
C8: Most, if not all, should go to the Endowment from where it may be withdrawn if necessary
B9: b. Capital Expenses and Expansion Planning shall be paid from endowment if withdrawal category
B10: c. Operating surplus/deficit shall be $0 every year
B11: d. Endowment withdrawal for operating budget equals what it is necessary to bring surplus/deficit to zero
B12: e. Special withdrawals and investment management fees come from Endowment and are not annual operating costs
B14: Note: On August 15, 2005, I completed the Results Page by figuring in Base Cases, Options I and II for one and three-year periods
B15: a. I then developed a two summary tables of important ratios, for base cases (top) and for options I and II (bottom)
B16: b. I also inserted assumptions for growth rates for Options I and II
B17: c. We need to obtain figures for school costs and revenues, weather costs and revenues and shop sales and costs.
B19: Note: On August 16, 2005 I arranged for a meeting at the museum on August 18 (Director and Treasurer).
B20: a. I also concentrated all assumptions to the Assumptions page, and made small changes to make model more efficient
B21: b. I conducted an XLAnalyst audit report, finding the "Risk %" to be 20%, primarily because I have some denominators that equal 0.
B23: Note: On August 17, 2005 I made minor changes, added the log sheet, and sent package to Director and Treasurer
B25: Note: On August 29, after a meeting with Director and Treasurer, I made several corrections- most of them insuring that the same range
C26: of revenues and costs were used in the assumptions, results and model sheets. One must be very careful in playing with
C27: the formulas!! This cannot be overemphasized. Director will provide growth rates for the subprograms that must be incorporated.
B29: Note: On September 15-17, 2005 I incorporated changes identified during past two weeks, including first thoughts on capital campaign
C30: submodel. Completed draft of capital campaign model and added flexibility on assumptions on museum sales, admissions, etc.
B32: Note: On September 29 and October 14, 2005 respectively, I met with the Board and Finance Committee of the Museum to present the model and
C33: discuss it use sand possible modifications.
B34: In late October, I had KS perform an audit of the model and her found errors and 'poor practices' were addressed and
C35: became version 4.0. On November 24, I began modifying the format with protected cells and color coding to make it easier to use.
B36: On December 12, I inserted the influence diagram below.
B37: On December 29, I received and entered some refinements for 2006 budget from Director.

Sheet 5.7
A1: Northern Museum
A2: Prototype Planning Model
B6: OVERVIEW
B9: INSTRUCTIONS
B12: LOG OF USE
B15: GUIDE TO SHEETS
B18: INFLUENCE CHART
B21: HISTORICAL DATA | C21: ASSUMPTIONS | D21: Note: the arrows below depict the flow of
D22: information from one sheet to another.
D24: LONG TERM MODEL | F24: RATIO CHARTS
D27: SHORT TERM RESULTS

Sheet Influence chart
A1: Northern Museum
A2: Prototype Planning Model

Sheet Assumptions
A1: Northern Museum
A2: Prototype Planning Model
A3: BRL 10/04 | C3: Revised 5/3/05, 8/15/05, 8/16/05, 9/15/05, 11/24/05, 12/16/05, 12/29/05
C4: Note: Assumptions and Projected Data in Italics
A5: Parameters of the Basic Model and Assumptions | F5: Assumptions
D6: Est
A7: CURRENT MUSEUM OPERATIONS | B7: 2003 | C7: 2004 | D7: 2005 | E7: 2006 | F7: Annual | G7: Option | H7: Option | I7: CURRENT MUSEUM OPERATIONS
B8: Actual | C8: Actual | D8: Actual | E8: Proj. | F8: Growth Rate | G8: I | H8: II
A9: Revenues | I9: Revenues
A10: Grants | I10: Grants
A11: Municipal | B11: 55000 | C11: 61664 | D11: 65000 | E11: 65000 | F11: 0.02 | G11: 0.01 | H11: 0.03 | I11: Municipal
A12: Federal | B12: 75000 | C12: 91024 | D12: 131500 | E12: 130400 | F12: 0.02 | G12: 0.01 | H12: 0.025 | I12: Federal
A13: Foundations | B13: 70000 | C13: 24000 | D13: 62500 | E13: 110000 | F13: 0.05 | G13: 0.03 | H13: 0.06 | I13: Foundations
A14: Total grants | B14: =SUM(B11:B13) -> 200000 | C14: =SUM(C11:C13) -> 176688 | D14: =SUM(D11:D13) -> 259000 | E14: =SUM(E11:E13) -> 305400 | I14: Total grants
A15: Sponsorships | B15: 15000 | C15: 2500 | D15: 15500 | E15: 25000 | F15: 0.05 | G15: 0.03 | H15: 0.06 | I15: Sponsorships
A16: Admissions | B16: 66000 | C16: 63836 | D16: 60000 | E16: 63000 | F16: 0.01 | G16: 0 | H16: 0.02 | I16: Admissions
A17: Gross Retail Sales | B17: 56000 | C17: 53230 | D17: 59500 | E17: 62000 | F17: 0.07 | G17: 0.05 | H17: 0.08 | I17: Gross Retail Sales
A18: Public programs & events | B18: 64406 | C18: 56725 | D18: 46126 | E18: 61100 | F18: 0.03 | G18: 0.02 | H18: 0.05 | I18: Public programs & events
A19: Fees for Services | B19: 107625 | C19: =SUM(C20:C21) -> 97017 | D19: =SUM(D20:D21) -> 118194 | E19: =SUM(E20:E21) -> 133000 | I19: Fees for Services
A20: Weather Services | C20: 31196 | D20: 36000 | E20: 52000 | F20: 0.03 | G20: 0.02 | H20: 0.04 | I20: Weather Services
A21: School (contract/non-contract) | C21: 65821 | D21: 82194 | E21: 81000 | F21: 0.03 | G21: 0.02 | H21: 0.04 | I21: School (contract/non-contract)
A22: Annual Fund | B22: 65000 | C22: 63000 | D22: 80000 | E22: 85000 | F22: 0.01 | G22: 0 | H22: 0.02 | I22: Annual Fund
A23: Contributions and membership | B23: 49000 | C23: 32500 | D23: 34000 | E23: 38500 | F23: 0.05 | G23: 0.03 | H23: 0.06 | I23: Contributions and membership
A24: Gift allocated to Annual Budget | C24: 60000 | D24: 55500 | E24: 7000 | I24: Gift allocated to Annual Budget
A25: Endowment withdrawal | B25: 146000 | C25: =C56 -> 137156 | D25: 75000 | E25: =E56 -> 71106 | I25: Endowment withdrawal
A26: Total revenues | B26: =SUM(B14:B25) -> 769031 | C26: =SUM(C14:C25)-C19 -> 742652 | D26: =SUM(D14:D25)-D19 -> 802820 | E26: =SUM(E14:E25)-E19 -> 851106 | I26: Total revenues
A28: Costs | I28: Costs
A29: Non-Personnel | C29: 256568 | D29: 267299 | E29: 284599 | F29: 0.0275 | G29: 0.025 | H29: 0.03 | I29: Non-Personnel
A30: Personnel | B30: 489722 | C30: 486084 | D30: 525042 | E30: 566505 | F30: 0.04 | G30: 0.03 | H30: 0.05 | I30: Personnel
A31: Temporary Staff Positions | I31: Temporary Staff Positions
A32: Permanent Staff Positions | I32: Permanent Staff Positions
A33: Programs | B33: 140160 | C33: =SUM(C34:C40) -> 444084 | D33: =SUM(D34:D40) -> 445659 | E33: =SUM(E34:E40) -> 529699 | I33: Programs
A34: Weather Services | C34: 49412 | D34: 60323 | E34: 60883 | F34: 0.03 | G34: 0.035 | H34: 0.025 | I34: Weather Services
A35: School (contract/non-contract) | C35: 70848 | D35: 67709 | E35: 79200 | F35: 0.03 | G35: 0.035 | H35: 0.025 | I35: School (contract/non-contract)
A36: Museum Shop Costs | C36: 40424 | D36: 45619 | E36: 47716 | F36: 0.03 | G36: 0.035 | H36: 0.025 | I36: Museum Shop Costs
A37: Collections, Kitchel | C37: 51693 | D37: 81789 | E37: 91090 | F37: 0.03 | G37: 0.035 | H37: 0.025 | I37: Collections, Kitchel
A38: Planetarium and Oth. Programs | C38: 69365 | D38: 49700 | E38: 151266 | F38: 0.03 | G38: 0.035 | H38: 0.025 | I38: Planetarium and Oth. Programs
A39: Exhibits and Planning | C39: 117316 | D39: 93859 | E39: 75778 | F39: 0.03 | G39: 0.035 | H39: 0.025 | I39: Exhibits and Planning
A40: Auction, Visitor Services | C40: 45026 | D40: 46660 | E40: 23766 | F40: 0.03 | G40: 0.035 | H40: 0.025 | I40: Festival, Auction, Visitor, etc.
A41: Facilities and Equipment | B41: 68700 | C41: 88687 | D41: 103087 | E41: 116074 | F41: 0.02 | G41: 0.025 | H41: 0.0175 | I41: Facilities and Equipment
A42: Administration | B42: 56967 | C42: 131739 | D42: 118631 | E42: 91592 | F42: 0.02 | G42: 0.025 | H42: 0.0175 | I42: Administration
A43: Development and Marketing | B43: 34300 | C43: 78142 | D43: 91909 | E43: 113741 | F43: 0.08 | G43: 0.1 | H43: 0.06 | I43: Development and Marketing
A44: Total costs | B44: =SUM(B30:B43) -> 789849 | C44: =SUM(C34:C43) -> 742652 | D44: =SUM(D34:D43) -> 759286 | E44: =SUM(E34:E43) -> 851106 | I44: Total costs
A45: Capital Expense | C45: 11194 | E45: 72100 | I45: Capital Expense
A46: Expansion Planning | C46: 46581 | I46: Expansion Planning
A48: Operating surplus/deficit | B48: =B26-B44 -> -20818 | C48: =C26-C44 -> 0 | E48: =E26-E44 -> 0 | I48: Operating surplus/deficit
A50: Check [non-personnel+personnel=total costs?] | C50: =SUM(C29:C30)-C44 -> 0 | E50: =SUM(E29:E30)-E44 -> -2
A52: Endowment | F52: 2007 | G52: 2008 | H52: 2009 | I52: 2010 | J52: 2011
A53: Beginning of year | C53: =B58 -> 1654000 | D53: =C58 -> 1684667 | E53: =D58 -> 1823127.69 | U53: Endowment
A54: Contributions from Capital Campaign | C54: 52043 | D54: 52000 | E54: 80000 | F54: 253600 | G54: 356160 | H54: 263696 | I54: 12217.6 | J54: 97330.56 | U54: Beginning of year
A55: Interest to Investment Income | C55: =C53*$F$62 -> 132320 | D55: =D53*$F$62 -> 134773.36 | E55: =E53*$F$62 -> 145850.2152 | U55: Add. Endowment Contrib.
A56: Withdrawal for operations | C56: =C44-(SUM(C14:C24)-C19) -> 137156 | D56: =D44-(SUM(D14:D24)-D19) -> 31466 | E56: =E44-(SUM(E14:E24)-E19) -> 71106 | U56: Interest to Investment Income
A57: Investment Management Fee | C57: =C53*$E$63 -> 16540 | D57: =D53*$E$63 -> 16846.67 | E57: =E53*$E$63 -> 18231.2769 | U57: Special withdrawal
A58: End of year | B58: 1654000 | C58: =SUM(C53:C55)-SUM(C56:C57) -> 1684667 | D58: =SUM(D53:D55)-SUM(D56:D57) -> 1823127.69 | E58: =SUM(E53:E55)-SUM(E56:E57) -> 1959640.628 | U58: Investment Management Fee
U59: End of year
A60: Other Model Assumptions:
D61: Limit on Endowment Withdrawal for Operations | E61: 0.04
D62: Interest on Investment Income | F62: 0.08 | G62: 0.05 | H62: 0.1
D63: Investment Management Fee | E63: 0.01
D64: Growth rate of Museum paid attendance
D65: Growth rate of admissions fee
D66: Sales in Museum Shop per paid admission
D67: Growth rate of museum shop sales per admission
D68: Growth rate for weather service fees
D69: Growth rate for school service fees
D70: % of Capital Campaign to Endowment | E70: 0.4
A72: Notes of Symbols and Comments
B73: A cell marked with this symbol has a pertinent comment attached to it

Sheet 5.8 Long-term Model
A1: Northern Museum
A2: Prototype Planning Model
A3: SGP | F3: Note: Assumptions and Projected Data in Italics
A4: 2003-12-17 | B4: with add. data -1-7-04 | F4: BRL made adjustments on 10-26-04 and on 11-17-04 and 1-13-05 and 5-03-05 and 8-15-05 and 8/29/05 and 9/12-16/05, 11/24/05 and 12/29/05
B5: Basic Business Planning Model
D6: Est | H6: Three-Year Horizon
A7: CURRENT MUSEUM OPERATIONS | B7: 2003 | C7: 2004 | D7: 2005 | E7: 2006 | F7: Annual
B8: Actual | C8: Actual | D8: Actual | E8: Projected | F8: Growth rate | G8: =E7+1 -> 2007 | H8: =G8+1 -> 2008 | I8: =H8+1 -> 2009 | J8: 2010 | K8: 2011 | L8: 2012 | M8: 2013 | N8: 2014 | O8: 2015 | P8: 2016
A9: Revenues
A10: Grants
A11: Municipal | B11: 55000 | C11: =Assumptions!C11 -> 61664 | D11: 65000 | E11: =Assumptions!E11 -> 65000 | F11: =Assumptions!F11 -> 0.02 | G11: =$E11*(1+$F11) -> 66300 | H11: =G11*(1+$F11) -> 67626 | I11: =H11*(1+$F11) -> 68978.52 | J11: 70358.0904 | K11: 71765.25221 | L11: 73200.55725 | M11: 74664.5684 | N11: 76157.85977 | O11: 77681.01696 | P11: 79234.6373
A12: Federal | B12: 75000 | C12: =Assumptions!C12 -> 91024 | D12: 131500 | E12: =Assumptions!E12 -> 130400 | F12: =Assumptions!F12 -> 0.02 | G12: =$E12*(1+$F12) -> 133008 | H12: =G12*(1+$F12) -> 135668.16 | I12: 138381.5232 | J12: 141149.1537 | K12: 143972.1367 | L12: 146851.5795 | M12: 149788.6111 | N12: 152784.3833 | O12: 155840.0709 | P12: 158956.8724
A13: Foundations | B13: 70000 | C13: =Assumptions!C13 -> 24000 | D13: 62500 | E13: =Assumptions!E13 -> 110000 | F13: =Assumptions!F13 -> 0.05 | G13: =$E13*(1+$F13) -> 115500 | H13: =G13*(1+$F13) -> 121275 | I13: 127338.75 | J13: 133705.6875 | K13: 140390.9719 | L13: 147410.5205 | M13: 154781.0465 | N13: 162520.0988 | O13: 170646.1038 | P13: 179178.4089
A14: Total grants | B14: =SUM(B11:B13) -> 200000 | C14: =Assumptions!C14 -> 176688 | D14: =SUM(D11:D13) -> 259000 | E14: =Assumptions!E14 -> 305400 | F14: xxx | G14: =SUM(G11:G13) -> 314808 | H14: 324569.16 | I14: 334698.7932 | J14: 345212.9316 | K14: 356128.3608 | L14: 367462.6572 | M14: 379234.226 | N14: 391462.3419 | O14: 404167.1917 | P14: 417369.9186
A15: Sponsorships | B15: 15000 | C15: =Assumptions!C15 -> 2500 | D15: 15500 | E15: =Assumptions!E15 -> 25000 | F15: =Assumptions!F15 -> 0.05 | G15: =$E15*(1+$F15) -> 26250 | H15: =G15*(1+$F15) -> 27562.5 | I15: =H15*(1+$F15) -> 28940.625 | J15: =I15*(1+$F15) -> 30387.65625 | K15: =J15*(1+$F15) -> 31907.03906 | L15: 33502.39102 | M15: 35177.51057 | N15: 36936.38609 | O15: 38783.2054 | P15: 40722.36567
A16: Admissions | B16: 66000 | C16: =Assumptions!C16 -> 63836 | D16: 60000 | E16: =Assumptions!E16 -> 63000 | F16: =Assumptions!F16 -> 0.01 | G16: =$E16*(1+$F16) -> 63630 | H16: =G16*(1+$F16) -> 64266.3 | I16: =H16*(1+$F16) -> 64908.963 | J16: 65558.05263 | K16: 66213.63316 | L16: 66875.76949 | M16: 67544.52718 | N16: 68219.97245 | O16: 68902.17218 | P16: 69591.1939
A17: Gross Retail Sales | B17: 56000 | C17: =Assumptions!C17 -> 53230 | D17: 59500 | E17: =Assumptions!E17 -> 62000 | F17: =Assumptions!F17 -> 0.07 | G17: =$E17*(1+$F17) -> 66340 | H17: =G17*(1+$F17) -> 70983.8 | I17: 75952.666 | J17: 81269.35262 | K17: 86958.2073 | L17: 93045.28181 | M17: 99558.45154 | N17: 106527.5431 | O17: 113984.4712 | P17: 121963.3842
A18: Public programs & events | B18: 64406 | C18: =Assumptions!C18 -> 56725 | D18: 46126 | E18: =Assumptions!E18 -> 61100 | F18: =Assumptions!F18 -> 0.03 | G18: =$E18*(1+$F18) -> 62933 | H18: =G18*(1+$F18) -> 64820.99 | I18: 66765.6197 | J18: 68768.58829 | K18: 70831.64594 | L18: 72956.59532 | M18: 75145.29318 | N18: 77399.65197 | O18: 79721.64153 | P18: 82113.29078
A19: Fees for Services | B19: 107625 | C19: =Assumptions!C19 -> 97017 | D19: =SUM(D20:D21) -> 118194 | E19: =Assumptions!E19 -> 133000 | F19: xxx | G19: =SUM(G20:G21) -> 136990 | H19: =SUM(H20:H21) -> 141099.7 | I19: 145332.691 | J19: 149692.6717 | K19: 154183.4519 | L19: 158808.9554 | M19: 163573.2241 | N19: 168480.4208 | O19: 173534.8334 | P19: 178740.8785
A20: Weather Services | C20: =Assumptions!C20 -> 31196 | D20: 36000 | E20: =Assumptions!E20 -> 52000 | F20: =Assumptions!F20 -> 0.03 | G20: =$E20*(1+$F20) -> 53560 | H20: =G20*(1+$F$20) -> 55166.8 | I20: =H20*(1+$F$20) -> 56821.804 | J20: =I20*(1+$F$20) -> 58526.45812 | K20: 60282.25186 | L20: 62090.71942 | M20: 63953.441 | N20: 65872.04423 | O20: 67848.20556 | P20: 69883.65173
A21: School (contract/non-contract) | C21: =Assumptions!C21 -> 65821 | D21: 82194 | E21: =Assumptions!E21 -> 81000 | F21: =Assumptions!F21 -> 0.03 | G21: =$E21*(1+$F21) -> 83430 | H21: =G21*(1+$F$21) -> 85932.9 | I21: =H21*(1+$F$21) -> 88510.887 | J21: 91166.21361 | K21: 93901.20002 | L21: 96718.23602 | M21: 99619.7831 | N21: 102608.3766 | O21: 105686.6279 | P21: 108857.2267
A22: Annual Fund | B22: 65000 | C22: =Assumptions!C22 -> 63000 | D22: 80000 | E22: =Assumptions!E22 -> 85000 | F22: =Assumptions!F22 -> 0.01 | G22: =$E22*(1+$F22) -> 85850 | H22: =G22*(1+$F22) -> 86708.5 | I22: =H22*(1+$F22) -> 87575.585 | J22: =I22*(1+$F22) -> 88451.34085 | K22: 89335.85426 | L22: 90229.2128 | M22: 91131.50493 | N22: 92042.81998 | O22: 92963.24818 | P22: 93892.88066
A23: Contributions and membership | B23: 49000 | C23: =Assumptions!C23 -> 32500 | D23: 34000 | E23: =Assumptions!E23 -> 38500 | F23: =Assumptions!F23 -> 0.05 | G23: =$E23*(1+$F23) -> 40425 | H23: =G23*(1+$F23) -> 42446.25 | I23: =H23*(1+$F23) -> 44568.5625 | J23: 46796.99062 | K23: 49136.84016 | L23: 51593.68216 | M23: 54173.36627 | N23: 56882.03459 | O23: 59726.13632 | P23: 62712.44313
A24: Gifts allocated to annual budget | C24: =Assumptions!C24 -> 60000 | D24: 55500 | E24: =Assumptions!E24 -> 7000 | G24: =E24*(1+$F$24) -> 7000 | H24: =G24*(1+$F$24) -> 7000 | I24: =H24*(1+$F$24) -> 7000 | J24: 7000 | K24: 7000 | L24: 7000 | M24: 7000 | N24: 7000 | O24: 7000 | P24: 7000
A25: Endowment withdrawal | B25: 146000 | C25: =Assumptions!C25 -> 137156 | D25: 75000 | E25: =Assumptions!E25 -> 71106 | F25: xxx | G25: =G56 -> 76023.57 | H25: =H56 -> 81223.6779 | I25: 86730.61689 | J25: 92571.03833 | K25: 98774.17416 | L25: 105372.0795 | M25: 112399.8969 | N25: 119896.1445 | O25: 127903.0295 | P25: 136466.7902
A26: Total revenues | B26: =SUM(B14:B25) -> 769031 | C26: =Assumptions!C26 -> 742652 | D26: =SUM(D14:D25)-D19 -> 802820 | E26: =Assumptions!E26 -> 851106 | F26: xxx | G26: =SUM(G14:G25)-G19 -> 880249.57 | H26: =SUM(H14:H25)-H19 -> 910680.8779 | I26: 942474.1223 | J26: 975708.6229 | K26: 1010469.207 | L26: 1046846.625 | M26: 1084938.001 | N26: 1124847.315 | O26: 1166685.929 | P26: 1210573.146
A28: Costs
A29: Non-Personnel | C29: =Assumptions!C29 -> 256568 | D29: 231164 | E29: =Assumptions!E29 -> 284599 | F29: =Assumptions!F29 -> 0.0275 | G29: =$E29*(1+$F29) -> 292425.4725 | H29: =G29*(1+$F29) -> 300467.173 | I29: 308730.0203 | J29: 317220.0958 | K29: 325943.6484 | L29: 334907.0988 | M29: 344117.044 | N29: 353580.2627 | O29: 363303.7199 | P29: 373294.5722
A30: Personnel | B30: 489722 | C30: =Assumptions!C30 -> 486084 | D30: 540000 | E30: =Assumptions!E30 -> 566505 | F30: =Assumptions!F30 -> 0.04 | G30: =$E30*(1+$F30) -> 589165.2 | H30: 612731.808 | I30: 637241.0803 | J30: 662730.7235 | K30: 689239.9525 | L30: 716809.5506 | M30: 745481.9326 | N30: 775301.2099 | O30: 806313.2583 | P30: 838565.7886
A31: Temporary Staff Positions | C31: =Assumptions!C31 -> 0 | E31: =Assumptions!E31 -> 0 | G31: =$E31*(1+$F31) -> 0 | H31: 0 | I31: 0 | J31: 0 | K31: 0 | L31: 0 | M31: 0 | N31: 0 | O31: 0 | P31: 0
A32: Permanent Staff Positions | E32: =Assumptions!E32 -> 0 | G32: =$E32*(1+$F32) -> 0 | H32: 0 | I32: 0 | J32: 0 | K32: 0 | L32: 0 | M32: 0 | N32: 0 | O32: 0 | P32: 0
A33: Programs | B33: 140160 | D33: =Assumptions!D33 -> 445659 | E33: =SUM(E34:E40) -> 529699 | F33: xxx | G33: =SUM(G34:G40) -> 545589.97 | H33: =SUM(H34:H40) -> 561957.6691 | I33: =SUM(I34:I40) -> 578816.3992 | J33: =SUM(J34:J40) -> 596180.8911 | K33: 614066.3179 | L33: 632488.3074 | M33: 651462.9566 | N33: 671006.8453 | O33: 691137.0507 | P33: 711871.1622
A34: Weather Services | C34: =Assumptions!C34 -> 49412 | D34: =Assumptions!D34 -> 60323 | E34: =Assumptions!E34 -> 60883 | F34: =Assumptions!F34 -> 0.03 | G34: =$E34*(1+$F34) -> 62709.49 | H34: 64590.7747 | I34: 66528.49794 | J34: 68524.35288 | K34: 70580.08347 | L34: 72697.48597 | M34: 74878.41055 | N34: 77124.76287 | O34: 79438.50575 | P34: 81821.66092
A35: School (contract/non-contract) | C35: =Assumptions!C35 -> 70848 | D35: =Assumptions!D35 -> 67709 | E35: =Assumptions!E35 -> 79200 | F35: =Assumptions!F35 -> 0.03 | G35: 81576 | H35: 84023.28 | I35: 86543.9784 | J35: 89140.29775 | K35: 91814.50668 | L35: 94568.94189 | M35: 97406.01014 | N35: 100328.1904 | O35: 103338.0362 | P35: 106438.1772
A36: Museum Shop Costs | C36: =Assumptions!C36 -> 40424 | D36: =Assumptions!D36 -> 45619 | E36: =Assumptions!E36 -> 47716 | F36: =Assumptions!F36 -> 0.03 | G36: 49147.48 | H36: 50621.9044 | I36: 52140.56153 | J36: 53704.77838 | K36: 55315.92173 | L36: 56975.39938 | M36: 58684.66136 | N36: 60445.2012 | O36: 62258.55724 | P36: 64126.31396
A37: Collections, Kitchel | C37: =Assumptions!C37 -> 51693 | D37: =Assumptions!D37 -> 81789 | E37: =Assumptions!E37 -> 91090 | F37: =Assumptions!F37 -> 0.03 | G37: 93822.7 | H37: 96637.381 | I37: 99536.50243 | J37: 102522.5975 | K37: 105598.2754 | L37: 108766.2237 | M37: 112029.2104 | N37: 115390.0867 | O37: 118851.7893 | P37: 122417.343
A38: Planetarium and Oth. Programs | C38: =Assumptions!C38 -> 69365 | D38: =Assumptions!D38 -> 49700 | E38: =Assumptions!E38 -> 151266 | F38: =Assumptions!F38 -> 0.03 | G38: 155803.98 | H38: 160478.0994 | I38: 165292.4424 | J38: 170251.2157 | K38: 175358.7521 | L38: 180619.5147 | M38: 186038.1001 | N38: 191619.2431 | O38: 197367.8204 | P38: 203288.855
A39: Exhibits and Planning | C39: =Assumptions!C39 -> 117316 | D39: =Assumptions!D39 -> 93859 | E39: =Assumptions!E39 -> 75778 | F39: =Assumptions!F39 -> 0.03 | G39: 78051.34 | H39: 80392.8802 | I39: 82804.66661 | J39: 85288.8066 | K39: 87847.4708 | L39: 90482.89493 | M39: 93197.38177 | N39: 95993.30323 | O39: 98873.10232 | P39: 101839.2954
A40: Festival, Auction, Visitor, etc. | C40: =Assumptions!C40 -> 45026 | D40: =Assumptions!D40 -> 46660 | E40: =Assumptions!E40 -> 23766 | F40: =Assumptions!F40 -> 0.03 | G40: 24478.98 | H40: 25213.3494 | I40: 25969.74988 | J40: 26748.84238 | K40: 27551.30765 | L40: 28377.84688 | M40: 29229.18229 | N40: 30106.05775 | O40: 31009.23949 | P40: 31939.51667
A41: Facilities and Equipment | B41: 68700 | C41: =Assumptions!C41 -> 88687 | D41: =Assumptions!D41 -> 103087 | E41: =Assumptions!E41 -> 116074 | F41: =Assumptions!F41 -> 0.02 | G41: 118395.48 | H41: 120763.3896 | I41: 123178.6574 | J41: 125642.2305 | K41: 128155.0752 | L41: 130718.1767 | M41: 133332.5402 | N41: 135999.191 | O41: 138719.1748 | P41: 141493.5583
A42: Administration | B42: 56967 | C42: =Assumptions!C42 -> 131739 | D42: =Assumptions!D42 -> 118631 | E42: =Assumptions!E42 -> 91592 | F42: =Assumptions!F42 -> 0.02 | G42: =$E42*(1+$F42) -> 93423.84 | H42: 95292.3168 | I42: 97198.16314 | J42: 99142.1264 | K42: 101124.9689 | L42: 103147.4683 | M42: 105210.4177 | N42: 107314.626 | O42: 109460.9185 | P42: 111650.1369
A43: Development and Marketing | B43: 34300 | C43: =Assumptions!C43 -> 78142 | D43: =Assumptions!D43 -> 91909 | E43: =Assumptions!E43 -> 113741 | F43: =Assumptions!F43 -> 0.08 | G43: =E43*(1+$F$43) -> 122840.28 | H43: =G43*(1+$F$43) -> 132667.5024 | I43: 143280.9026 | J43: 154743.3748 | K43: 167122.8448 | L43: 180492.6724 | M43: 194932.0862 | N43: 210526.653 | O43: 227368.7853 | P43: 245558.2881
A44: Total Costs | B44: =SUM(B30:B43) -> 789849 | C44: =Assumptions!C44 -> 742652 | D44: =Assumptions!D44 -> 759286 | E44: =Assumptions!E44 -> 851106 | F44: xxx | G44: =SUM(G34:G43) -> 880249.57 | H44: 910680.8779 | I44: 942474.1223 | J44: 975708.6229 | K44: 1010469.207 | L44: 1046846.625 | M44: 1084938.001 | N44: 1124847.315 | O44: 1166685.929 | P44: 1210573.146
A45: Capital Expense | C45: =Assumptions!C45 -> 11194 | D45: =Assumptions!D45 -> 0 | E45: =Assumptions!E45 -> 72100
A46: Expansion Planning | C46: =Assumptions!C46 -> 46581 | D46: =Assumptions!D46 -> 0 | E46: =Assumptions!E46 -> 0
A48: Operating surplus/deficit | B48: =B26-B44 -> -20818 | C48: =Assumptions!C48 -> 0 | E48: =Assumptions!E48 -> 0 | F48: xxx | G48: =G26-G44 -> 0 | H48: 0 | I48: 0 | J48: 0 | K48: 0 | L48: 0 | M48: 0 | N48: 0 | O48: 0 | P48: 0
A50: Check [(non-personnel+personnel)-total costs?] | G50: =SUM(G29:G30)-G44 -> 1341.1025 | H50: 2518.103094 | I50: 3496.978278 | J50: 4242.196455 | K50: 4714.394174 | L50: 4870.024604 | M50: 4660.975932 | N50: 4034.157197 | O50: 2931.048873 | P50: 1287.215291
A52: Endowment
A53: Beginning of year | C53: =Assumptions!C53 -> 1654000 | D53: =Assumptions!D53 -> 1684667 | E53: =Assumptions!E53 -> 1823127.69 | F53: xxx | G53: =E58 -> 1959640.628 | H53: =G58 -> 2274391.902 | I53: =H58 -> 2708535.658 | J53: 3075098.537 | K53: 3210001.996 | L53: 3433258.521 | M53: 3568214.538 | N53: 3705589.659 | O53: 3845084.791 | P53: 3986337.697
A54: Contributions from Capital Campaign | C54: =Assumptions!C54 -> 52043 | D54: =Assumptions!D54 -> 52000 | E54: =Assumptions!E54 -> 80000 | F54: =Assumptions!E54 -> 80000 | G54: =Assumptions!F54 -> 253600 | H54: =Assumptions!G54 -> 356160 | I54: =Assumptions!H54 -> 263696 | J54: =Assumptions!I54 -> 12217.6 | K54: =Assumptions!J54 -> 97330.56 | L54: 0 | M54: 0 | N54: 0 | O54: 0 | P54: 0
A55: Interest to Investment Income | C55: =Assumptions!C55 -> 132320 | D55: =Assumptions!D55 -> 134773.36 | E55: =Assumptions!E55 -> 145850.2152 | F55: =Assumptions!F62 -> 0.08 | G55: =G$53*($F55) -> 156771.2503 | H55: =H$53*($F55) -> 181951.3522 | I55: =I$53*($F55) -> 216682.8526 | J55: =J$53*($F55) -> 246007.8829 | K55: 256800.1597 | L55: 274660.6817 | M55: 285457.1631 | N55: 296447.1727 | O55: 307606.7833 | P55: 318907.0157
A56: Withdrawal for operations | C56: =Assumptions!C56 -> 137156 | D56: =Assumptions!D56 -> 31466 | E56: =Assumptions!E56 -> 71106 | G56: =SUM(G44:G46)-(SUM(G14:G24)-G19) -> 76023.57 | H56: =SUM(H44:H46)-(SUM(H14:H24)-H19) -> 81223.6779 | I56: 86730.61689 | J56: 92571.03833 | K56: 98774.17416 | L56: 105372.0795 | M56: 112399.8969 | N56: 119896.1445 | O56: 127903.0295 | P56: 136466.7902
A57: Investment Management Fee | C57: =Assumptions!C57 -> 16540 | D57: =Assumptions!D57 -> 16846.67 | E57: =Assumptions!E57 -> 18231.2769 | F57: xxx | G57: =Assumptions!$E$63*G53 -> 19596.40628 | H57: =Assumptions!$E$63*H53 -> 22743.91902 | I57: =Assumptions!$E$63*I53 -> 27085.35658 | J57: =Assumptions!$E$63*J53 -> 30750.98537 | K57: =Assumptions!$E$63*K53 -> 32100.01996 | L57: =Assumptions!$E$63*L53 -> 34332.58521 | M57: =Assumptions!$E$63*M53 -> 35682.14538 | N57: =Assumptions!$E$63*N53 -> 37055.89659 | O57: =Assumptions!$E$63*O53 -> 38450.84791 | P57: =Assumptions!$E$63*P53 -> 39863.37697
A58: End of year | B58: 1654000 | C58: =Assumptions!C58 -> 1684667 | D58: =Assumptions!D58 -> 1823127.69 | E58: =Assumptions!E58 -> 1959640.628 | F58: xxx | G58: =SUM(G53:G55)-SUM(G56:G57) -> 2274391.902 | H58: 2708535.658 | I58: 3075098.537 | J58: 3210001.996 | K58: 3433258.521 | L58: 3568214.538 | M58: 3705589.659 | N58: 3845084.791 | O58: 3986337.697 | P58: 4128914.545
A61: Ratios
A62: General Admission Revenues/Total Expenditures | B62: =B16/B44 -> 0.08356027545 | C62: =C16/C44 -> 0.08595681423 | D62: =D16/D44 -> 0.07902160714 | E62: =E16/E44 -> 0.07402133224 | F62: A | G62: =G16/G44 -> 0.07228631762 | H62: 0.07056950635 | I62: 0.06887081721 | J62: 0.06719019499 | K62: 0.06552761105 | L62: 0.06388306358 | M62: 0.06225657793 | N62: 0.06064820667 | O62: 0.05905802963 | P62: 0.05748615369
A63: Municipal Appropriations/Total Expenditures | B63: =B11/B44 -> 0.06963356287 | C63: =C11/C44 -> 0.08303216042 | D63: =D11/D44 -> 0.08560674107 | E63: =E11/E44 -> 0.07637121581 | F63: B | G63: =G11/G44 -> 0.0753195483 | H63: 0.07425872404 | I63: 0.07318876812 | J63: 0.07210973517 | K63: 0.07102171123 | L63: 0.06992481565 | M63: 0.0688192029 | N63: 0.06770506425 | O63: 0.06658262949 | P63: 0.06545216833
A64: Foundation Grants/Total Expenditures | B64: =B13/B44 -> 0.08862453456 | C64: =C13/C44 -> 0.03231661667 | D64: =D13/D44 -> 0.08231417411 | E64: =E13/E44 -> 0.129243596 | F64: C | G64: =G13/G44 -> 0.1312127878 | H64: 0.133169591 | I64: 0.1351111367 | J64: 0.1370344428 | K64: 0.1389364178 | L64: 0.1408138661 | M64: 0.1426634945 | N64: 0.1444819191 | O64: 0.146265674 | P64: 0.1480112206
A65: Government Grants/Total Expenditures | B65: =B12/B44 -> 0.09495485846 | C65: =C12/C44 -> 0.1225661548 | D65: =D12/D44 -> 0.1731890223 | E65: =E12/E44 -> 0.1532124083 | F65: D | G65: =G12/G44 -> 0.1511026015 | H65: 0.1489744248 | I65: 0.1468279287 | J65: 0.1446632226 | K65: 0.1424804791 | L65: 0.1402799379 | M65: 0.1380619086 | N65: 0.1358267751 | O65: 0.1335749982 | P65: 0.1313071192
A66: Weather Services Revenues/Weather Services Costs | C66: =C20/C34 -> 0.6313446126 | D66: 0.5967872951 | E66: 0.8540972028 | F66: E | G66: =G20/G34 -> 0.8540972028 | H66: =H20/H34 -> 0.8540972028 | I66: 0.8540972028 | J66: 0.8540972028 | K66: 0.8540972028 | L66: 0.8540972028 | M66: 0.8540972028 | N66: 0.8540972028 | O66: 0.8540972028 | P66: 0.8540972028
A67: School ServicesRevenues/Cost of School Programs | C67: 0.92904528 | D67: 1.213930201 | E67: 1.022727273 | F67: F | G67: =G21/G35 -> 1.022727273 | H67: 1.022727273 | I67: 1.022727273 | J67: 1.022727273 | K67: 1.022727273 | L67: 1.022727273 | M67: 1.022727273 | N67: 1.022727273 | O67: 1.022727273 | P67: 1.022727273
A68: Shop Sales/Shop Costs | C68: =C17/C36 -> 1.316792005 | D68: =D17/D36 -> 1.304281111 | E68: =E17/E36 -> 1.299354514 | F68: G | G68: =G17/G36 -> 1.349814884 | H68: =H17/H36 -> 1.402234879 | I68: 1.456690603 | J68: 1.513261111 | K68: 1.572028533 | L68: 1.633078185 | M68: 1.696498697 | N68: 1.762382142 | O68: 1.830824167 | P68: 1.901924134
A69: Development and Marketing Costs/Total Revenues | B69: =B43/B26 -> 0.04460158303 | C69: =C43/C26 -> 0.1052202108 | D69: =D43/D26 -> 0.1144826985 | E69: =E43/E26 -> 0.1336390532 | F69: H | G69: =G43/G26 -> 0.1395516501 | H69: 0.1456794643 | I69: 0.1520263519 | J69: 0.1585958873 | K69: 0.1653913288 | L69: 0.1724155842 | M69: 0.1796711757 | N69: 0.187160204 | O69: 0.1948843125 | P69: 0.2028446517
A70: Administration Costs/Total Revenues | B70: =B42/B26 -> 0.07407633762 | C70: =C42/C26 -> 0.1773899485 | D70: =D42/D26 -> 0.1477678683 | E70: =E42/E26 -> 0.1076152677 | F70: I | G70: =G42/G26 -> 0.1061333549 | H70: 0.1046385393 | I70: 0.1031308562 | J70: 0.1016103825 | K70: 0.1000772396 | L70: 0.09853159562 | M70: 0.09697366818 | N70: 0.09540372685 | O70: 0.09382209538 | P70: 0.09222915387

Sheet Short-Term Results
A1: Northern Museum
A2: Prototype Planning Model
A3: BRL 10-26-04 | Q3: Annual
A4: Summary of the Model Outputs - Decision Variables, Base Case | Q4: Growth Rate | V4: One-Year | Y4: Three-Year
L5: Assumptions for Base Case and Options | P5: Base | T5: Base Year | U5: Base | X5: Base
A6: Decision Variables and Summary (Base Case) | P6: Case | Q6: Option I | R6: Option II | T6: 2006 proj | U6: Case | V6: Option I | W6: Option II | X6: Case | Y6: Option I | Z6: Option II
L7: CURRENT MUSEUM OPERATIONS
A8: Important Ratios and Factors | D8: GOAL | F8: End of Year One - 2007 | I8: End of Year Three - 2009
E9: Base Case | F9: Option I | G9: Option II | H9: Base Case | I9: Option I | J9: Option II | L9: Revenues
L10: Grants
A11: Operating surplus/deficit | D11: 0 | E11: =U49 -> 0 | F11: 0 | G11: 0 | H11: 0 | I11: 0 | J11: 0 | L11: Municipal | P11: =Assumptions!F11 -> 0.02 | Q11: =Assumptions!G11 -> 0.01 | R11: =Assumptions!H11 -> 0.03 | T11: =Assumptions!E11 -> 65000 | U11: =(1+P11)*$T11 -> 66300 | V11: 65650 | W11: 66950 | X11: =POWER(1+P11,3)*$T11 -> 68978.52 | Y11: 66969.565 | Z11: 71027.255
A12: Grants as % of Revenues | D12: 0.33 | E12: =U14/U26 -> 0.3576349376 | F12: 0.3505417159 | G12: 0.3626056574 | H12: 0.3551278335 | I12: 0.3341136668 | J12: 0.3703709242 | L12: Federal | P12: =Assumptions!F12 -> 0.02 | Q12: =Assumptions!G12 -> 0.01 | R12: =Assumptions!H12 -> 0.025 | T12: =Assumptions!E12 -> 130400 | U12: 133008 | V12: 131704 | W12: 133660 | X12: 138381.5232 | Y12: 134351.2504 | Z12: 140426.5375
A13: Endowment, end of year | D13: xxx | E13: =U58 -> 2274391.902 | F13: 2199556.038 | G13: 2326716.195 | H13: 3075098.537 | I13: 2941925.667 | J13: 3171938.054 | L13: Foundations | P13: =Assumptions!F13 -> 0.05 | Q13: =Assumptions!G13 -> 0.03 | R13: =Assumptions!H13 -> 0.06 | T13: =Assumptions!E13 -> 110000 | U13: 115500 | V13: 113300 | W13: 116600 | X13: 127338.75 | Y13: 120199.97 | Z13: 131011.76
A14: Personnel as % of Total Costs | D14: 0.67 | E14: =U30/U44 -> 0.6693160895 | F14: 0.6584210853 | G14: 0.6799559089 | H14: 0.6761364214 | I14: 0.6432808278 | J14: 0.7092374114 | L14: Total grants | P14: xxx | Q14: xxx | R14: xxx | T14: =SUM(T11:T13) -> 305400 | U14: =SUM(U11:U13) -> 314808 | V14: 310654 | W14: 317210 | X14: 334698.7932 | Y14: 321520.7854 | Z14: 342465.5525
A15: Endowment Withdrawal as % | D15: 0.06 | E15: =U25/U26 -> 0.08636592688 | F15: 0.1038919542 | G15: 0.07189252433 | H15: 0.09202440135 | I15: 0.1440777667 | J15: 0.04765213415 | L15: Sponsorships | P15: =Assumptions!F15 -> 0.05 | Q15: =Assumptions!G15 -> 0.03 | R15: =Assumptions!H15 -> 0.06 | T15: =Assumptions!E15 -> 25000 | U15: =(1+P15)*$T15 -> 26250 | V15: 25750 | W15: 26500 | X15: =POWER(1+P15,3)*$T15 -> 28940.625 | Y15: 27318.175 | Z15: 29775.4
A16: of Total Revenues | D16: xxx | L16: Admissions | P16: =Assumptions!F16 -> 0.01 | Q16: =Assumptions!G16 -> 0 | R16: =Assumptions!H16 -> 0.02 | T16: =Assumptions!E16 -> 63000 | U16: 63630 | V16: 63000 | W16: 64260 | X16: 64908.963 | Y16: 63000 | Z16: 66856.104
A17: Endowment Withdrawal as % | D17: 1 | E17: =U56/(Assumptions!$E$61*U53) -> 0.9698662206 | F17: =V56/(Assumptions!$E$61*V53) -> 1.17458035 | G17: =W56/(Assumptions!$E$61*W53) -> 0.8023421373 | H17: =X56/(Assumptions!$E$61*X53) -> 0.8005305067 | I17: =Y56/(Assumptions!$E$61*Y53) -> 1.279726705 | J17: =Z56/(Assumptions!$E$61*Z53) -> 0.406694047 | L17: Gross Retail Sales | P17: =Assumptions!F17 -> 0.07 | Q17: =Assumptions!G17 -> 0.05 | R17: =Assumptions!H17 -> 0.08 | T17: =Assumptions!E17 -> 62000 | U17: 66340 | V17: 65100 | W17: 66960 | X17: 75952.666 | Y17: 71772.75 | Z17: 78102.144
A18: of Maximum Allowed | D18: xxx | L18: Public programs & events | P18: =Assumptions!F18 -> 0.03 | Q18: =Assumptions!G18 -> 0.02 | R18: =Assumptions!H18 -> 0.05 | T18: =Assumptions!E18 -> 61100 | U18: 62933 | V18: 62322 | W18: 64155 | X18: 66765.6197 | Y18: 64839.8088 | Z18: 70730.8875
A19: Over or Under Limit ? | D19: UNDER | E19: =IF(E17>100%,"OVER","UNDER") -> UNDER | F19: OVER | G19: UNDER | H19: UNDER | I19: OVER | J19: UNDER | L19: Fees for Services | P19: xxx | Q19: xxx | R19: xxx | T19: =SUM(T20:T21) -> 133000 | U19: =SUM(U20:U21) -> 136990 | V19: 135660 | W19: 138320 | X19: 145332.691 | Y19: 141140.664 | Z19: 149606.912
A20: General Admission Revenues/Total Expenditures | D20: 0.1 | E20: =U16/U44 -> 0.07228631762 | F20: 0.07108914775 | G20: 0.07345619478 | H20: 0.06887081721 | I20: 0.06546749685 | J20: 0.07230378894 | L20: Weather Services | P20: =Assumptions!F20 -> 0.03 | Q20: =Assumptions!G20 -> 0.02 | R20: =Assumptions!H20 -> 0.04 | T20: =Assumptions!E20 -> 52000 | U20: =(1+P20)*$T20 -> 53560 | V20: 53040 | W20: 54080 | X20: =POWER(1+P20,3)*$T20 -> 56821.804 | Y20: 55182.816 | Z20: 58492.928
A21: Municipal Appropriations/Total Expenditures | D21: 0.08 | E21: =U11/U44 -> 0.0753195483 | F21: 0.07407940555 | G21: 0.07653115843 | H21: 0.07318876812 | I21: 0.06959253628 | J21: 0.07681482089 | L21: School (contract/non-contract) | P21: =Assumptions!F21 -> 0.03 | Q21: =Assumptions!G21 -> 0.02 | R21: =Assumptions!H21 -> 0.04 | T21: =Assumptions!E21 -> 81000 | U21: 83430 | V21: 82620 | W21: 84240 | X21: 88510.887 | Y21: 85957.848 | Z21: 91113.984
A22: Foundation Grants/Total Expenditures | D22: 0.1 | E22: =U13/U44 -> 0.1312127878 | F22: 0.127847626 | G22: 0.1332865283 | H22: 0.1351111367 | I22: 0.1249077961 | J22: 0.1416870873 | L22: Annual Fund | P22: =Assumptions!F22 -> 0.01 | Q22: =Assumptions!G22 -> 0 | R22: =Assumptions!H22 -> 0.02 | T22: =Assumptions!E22 -> 85000 | U22: 85850 | V22: 85000 | W22: 86700 | X22: 87575.585 | Y22: 85000 | Z22: 90202.68
A23: Government Grants/Total Expenditures | D23: 0.15 | E23: =U12/U44 -> 0.1511026015 | F23: 0.1486146844 | G23: 0.1527879707 | H23: 0.1468279287 | I23: 0.1396133343 | J23: 0.151869016 | L23: Contributions and membership | P23: =Assumptions!F23 -> 0.05 | Q23: =Assumptions!G23 -> 0.03 | R23: =Assumptions!H23 -> 0.06 | T23: =Assumptions!E23 -> 38500 | U23: 40425 | V23: 39655 | W23: 40810 | X23: 44568.5625 | Y23: 42069.9895 | Z23: 45854.116
A24: Weather Services Revenues/Weather Services Costs | D24: 1.4 | E24: =U20/U34 -> 0.8540972028 | F24: 0.8417189825 | G24: 0.8665961863 | H24: 0.8540972028 | I24: 0.8174981254 | J24: 0.8921455658 | L24: Gift allocated to Annual Budget | P24: =Assumptions!F24 -> 0 | Q24: =Assumptions!G24 -> 0 | R24: =Assumptions!H24 -> 0 | T24: =Assumptions!E24 -> 7000 | U24: =$T$24*(1+P24) -> 7000 | V24: =$T$24*(1+Q24) -> 7000 | W24: =$T$24*(1+R24) -> 7000 | X24: =$T$24*(1+P24)^3 -> 7000 | Y24: =$T$24*(1+Q24)^3 -> 7000 | Z24: =$T$24*(1+R24)^3 -> 7000
A25: School ServicesRevenues/Cost of School Programs | D25: 1.4 | E25: 1.022727273 | F25: 1.007905138 | G25: 1.037694013 | H25: 1.022727273 | I25: 0.978902197 | J25: 1.068287776 | L25: Endowment withdrawal | P25: =Assumptions!F25 ->  | T25: =T56 -> 71106 | U25: =U56 -> 76023.57 | V25: 92070.215 | W25: 62892.09 | X25: 86730.61689 | Y25: 138647.4165 | Z25: 44061.81313
A26: Shop Sales/Shop costs | D26: 1.4 | E26: =U17/U36 -> 1.349814884 | F26: 1.318185739 | G26: 1.369075976 | H26: 1.456690603 | I26: 1.356670893 | J26: 1.519943099 | L26: Total revenues | T26: =SUM(T14:T25)-T19 -> 851106 | U26: 880249.57 | V26: 886211.215 | W26: 874807.09 | X26: 942474.1223 | Y26: 962309.5892 | Z26: 924655.6091
A27: Development and Marketing Costs/Total Costs | D27: 0.14 | E27: =U43/U44 -> 0.1395516501 | F27: 0.1411797751 | G27: 0.137819482 | H27: 0.1520263519 | I27: 0.1573186765 | J27: 0.1465057363
A28: Administration Costs/Total Costs | D28: 0.14 | E28: =U42/U44 -> 0.1061333549 | F28: 0.1059361453 | G28: 0.1065318984 | H28: 0.1031308562 | I28: 0.1024977484 | J28: 0.104347197 | L28: Costs
L29: Non-Personnel | P29: =Assumptions!F29 -> 0.0275 | Q29: =Assumptions!G29 -> 0.025 | R29: =Assumptions!H29 -> 0.03 | T29: =Assumptions!E29 -> 284599 | U29: =(1+P29)*$T29 -> 292425.4725 | V29: 291713.975 | W29: 293136.97 | X29: =POWER(1+P29,3)*$T29 -> 308730.0203 | Y29: 306481.995 | Z29: 310989.0115
L30: Personnel | P30: =Assumptions!F30 -> 0.04 | Q30: =Assumptions!G30 -> 0.03 | R30: =Assumptions!H30 -> 0.05 | T30: =Assumptions!E30 -> 566505 | U30: 589165.2 | V30: 583500.15 | W30: 594830.25 | X30: 637241.0803 | Y30: 619035.3091 | Z30: 655800.3506
L31: Temporary Staff Positions | P31: =Assumptions!F31 -> 0 | Q31: =Assumptions!G31 -> 0 | R31: =Assumptions!H31 -> 0
L32: Permanent Staff Positions | P32: =Assumptions!F32 -> 0 | Q32: =Assumptions!G32 -> 0 | R32: =Assumptions!H32 -> 0
L33: Programs | P33: =Assumptions!F33 -> 0 | Q33: =Assumptions!G33 -> 0 | R33: =Assumptions!H33 -> 0 | T33: =SUM(T34:T40) -> 529699 | U33: =SUM(U34:U40) -> 545589.97 | V33: 548238.465 | W33: 542941.475 | X33: 578816.3992 | Y33: 587286.7497 | Z33: 570427.8872
L34: Weather Services | P34: =Assumptions!F34 -> 0.03 | Q34: =Assumptions!G34 -> 0.035 | R34: =Assumptions!H34 -> 0.025 | T34: =Assumptions!E34 -> 60883 | U34: =(1+P34)*$T34 -> 62709.49 | V34: =(1+Q34)*$T34 -> 63013.905 | W34: =(1+R34)*$T34 -> 62405.075 | X34: =POWER(1+P34,3)*$T34 -> 66528.49794 | Y34: =POWER(1+Q34,3)*$T34 -> 67502.07038 | Z34: =POWER(1+R34,3)*$T34 -> 65564.33192
L35: School (contract/non-contract) | P35: =Assumptions!F35 -> 0.03 | Q35: =Assumptions!G35 -> 0.035 | R35: =Assumptions!H35 -> 0.025 | T35: =Assumptions!E35 -> 79200 | U35: 81576 | V35: 81972 | W35: 81180 | X35: 86543.9784 | Y35: 87810.4557 | Z35: 85289.7375
L36: Museum Shop Costs | P36: =Assumptions!F36 -> 0.03 | Q36: =Assumptions!G36 -> 0.035 | R36: =Assumptions!H36 -> 0.025 | T36: =Assumptions!E36 -> 47716 | U36: 49147.48 | V36: 49386.06 | W36: 48908.9 | X36: 52140.56153 | Y36: 52903.58212 | Z36: 51384.91306
L37: Collections, Kitchel | P37: =Assumptions!F37 -> 0.03 | Q37: =Assumptions!G37 -> 0.035 | R37: =Assumptions!H37 -> 0.025 | T37: =Assumptions!E37 -> 91090 | U37: 93822.7 | V37: 94278.15 | W37: 93367.25 | X37: 99536.50243 | Y37: 100993.1112 | Z37: 98093.96703
L38: Planetarium and Oth. Programs | P38: =Assumptions!F38 -> 0.03 | Q38: =Assumptions!G38 -> 0.035 | R38: =Assumptions!H38 -> 0.025 | T38: =Assumptions!E38 -> 151266 | U38: 155803.98 | V38: 156560.31 | W38: 155047.65 | X38: 165292.4424 | Y38: 167711.3181 | Z38: 162896.9373
L39: Exhibits and Planning | P39: =Assumptions!F39 -> 0.03 | Q39: =Assumptions!G39 -> 0.035 | R39: =Assumptions!H39 -> 0.025 | T39: =Assumptions!E39 -> 75778 | U39: 78051.34 | V39: 78430.23 | W39: 77672.45 | X39: 82804.66661 | Y39: 84016.42313 | Z39: 81604.61778
L40: Festival, Auction, Visitor, etc. | P40: =Assumptions!F40 -> 0.03 | Q40: =Assumptions!G40 -> 0.035 | R40: =Assumptions!H40 -> 0.025 | T40: =Assumptions!E40 -> 23766 | U40: 24478.98 | V40: 24597.81 | W40: 24360.15 | X40: 25969.74988 | Y40: 26349.78902 | Z40: 25593.38259
L41: Facilities and Equipment | P41: =Assumptions!F41 -> 0.02 | Q41: =Assumptions!G41 -> 0.025 | R41: =Assumptions!H41 -> 0.0175 | T41: =Assumptions!E41 -> 116074 | U41: 118395.48 | V41: 118975.85 | W41: 118105.295 | X41: 123178.6574 | Y41: 124999.0024 | Z41: 122275.1501
L42: Administration | P42: =Assumptions!F42 -> 0.02 | Q42: =Assumptions!G42 -> 0.025 | R42: =Assumptions!H42 -> 0.0175 | T42: =Assumptions!E42 -> 91592 | U42: 93423.84 | V42: 93881.8 | W42: 93194.86 | X42: 97198.16314 | Y42: 98634.56612 | Z42: 96485.22103
L43: Development and Marketing | P43: =Assumptions!F43 -> 0.08 | Q43: =Assumptions!G43 -> 0.1 | R43: =Assumptions!H43 -> 0.06 | T43: =Assumptions!E43 -> 113741 | U43: 122840.28 | V43: 125115.1 | W43: 120565.46 | X43: 143280.9026 | Y43: 151389.271 | Z43: 135467.3509
L44: Total costs | P44: =Assumptions!F44 -> 0 | Q44: =Assumptions!G44 -> 0 | R44: =Assumptions!H44 -> 0 | T44: =SUM(T34:T43) -> 851106 | U44: =SUM(U34:U43) -> 880249.57 | V44: 886211.215 | W44: 874807.09 | X44: 942474.1223 | Y44: 962309.5892 | Z44: 924655.6091
L45: Capital Expense | P45: =Assumptions!F45 -> 0 | Q45: =Assumptions!G45 -> 0 | R45: =Assumptions!H45 -> 0 | T45: =Assumptions!E45 -> 72100
L46: Expansion Planning | P46: =Assumptions!F46 -> 0 | Q46: =Assumptions!G46 -> 0 | R46: =Assumptions!H46 -> 0
L48: Operating surplus/deficit | T48: =T26-T44 -> 0 | U48: =U26-U44 -> 0 | V48: 0 | W48: 0 | X48: 0 | Y48: 0 | Z48: 0
L50: Check [(non-personnel+personnel)-total costs?] | T50: =SUM(T29:T30)-T44 -> -2 | U50: 1341.1025 | V50: -10997.09 | W50: 13160.13 | X50: 3496.978278 | Y50: -36792.28508 | Z50: 42133.75297
L52: Endowment
L53: Beginning of year | T53: =Assumptions!E53 -> 1823127.69 | U53: =T58 -> 1959640.628 | V53: =$T58 -> 1959640.628 | W53: =$T58 -> 1959640.628 | X53: ='5.8 Long-term Model'!$H$58 -> 2708535.658 | Y53: ='5.8 Long-term Model'!$H$58 -> 2708535.658 | Z53: ='5.8 Long-term Model'!$H$58 -> 2708535.658
L54: Contributions from Capital Campaign | P54: =Assumptions!F54 -> 253600 | Q54: =Assumptions!G54 -> 356160 | R54: =Assumptions!H54 -> 263696 | T54: =Assumptions!E54 -> 80000 | U54: =Assumptions!$F$54 -> 253600 | V54: =Assumptions!$F$54 -> 253600 | W54: =Assumptions!$F$54 -> 253600 | X54: =Assumptions!$H$54 -> 263696 | Y54: =Assumptions!$H$54 -> 263696 | Z54: =Assumptions!$H$54 -> 263696
L55: Interest to Investment Income | P55: =Assumptions!F62 -> 0.08 | Q55: =Assumptions!G62 -> 0.05 | R55: =Assumptions!H62 -> 0.1 | T55: =T53*(P55) -> 145850.2152 | U55: =($P$55)*U$53 -> 156771.2503 | V55: =($Q$55)*V$53 -> 97982.03142 | W55: =($R$55)*W$53 -> 195964.0628 | X55: =($P$55)*X$53 -> 216682.8526 | Y55: =($Q$55)*Y$53 -> 135426.7829 | Z55: =($R$55)*Z$53 -> 270853.5658
L56: Withdrawal for operations | T56: =T44-(SUM(T14:T24)-T19) -> 71106 | U56: 76023.57 | V56: 92070.215 | W56: 62892.09 | X56: 86730.61689 | Y56: 138647.4165 | Z56: 44061.81313
L57: Investment Management Fee | T57: =T53*Assumptions!E63 -> 18231.2769 | U57: =Assumptions!$E$63*U53 -> 19596.40628 | V57: =Assumptions!$E$63*V53 -> 19596.40628 | W57: =Assumptions!$E$63*W53 -> 19596.40628 | X57: =Assumptions!$E$63*X53 -> 27085.35658 | Y57: =Assumptions!$E$63*Y53 -> 27085.35658 | Z57: =Assumptions!$E$63*Z53 -> 27085.35658
L58: End of year | T58: =SUM(T53:T55)-SUM(T56:T57) -> 1959640.628 | U58: 2274391.902 | V58: 2199556.038 | W58: 2326716.195 | X58: 3075098.537 | Y58: 2941925.667 | Z58: 3171938.054

Sheet Historical data
A1: Northern Museum
A2: Prototype Planning Model
A3: SGP
A5: Historical Data | G5: Growth Rates | H5: est | K5: Two-Year | L5: Three-Year
D6: Est | G6: actual | H6: projected | I6: actual | K6: Average | L6: Average
A7: CURRENT MUSEUM OPERATIONS | B7: 2003 | C7: 2004 | D7: 2005 | E7: 2006 | G7: 2004 as % | H7: 2005 as % | I7: 2005 as % | J7: 2006 as % | K7: Ann. Rate | L7: Ann. Rate
B8: Actual | C8: Actual | D8: Actual | E8: Projected | G8: of 2003 | H8: of 2004 | I8: of 2004 | J8: of 2005 | K8: 2005/2003 | L8: 2006/2003
A9: Revenues
A10: Grants
A11: Municipal | B11: 55000 | C11: 60000 | D11: =Assumptions!D11 -> 65000 | G11: =(C11/B11)-1 -> 0.09090909091 | H11: =(D11/C11)-1 -> 0.08333333333
A12: Federal | B12: 75000 | C12: 112500 | D12: =Assumptions!D12 -> 131500 | G12: =(C12/B12)-1 -> 0.5 | H12: =(D12/C12)-1 -> 0.1688888889
A13: Foundations | B13: 70000 | C13: 60000 | D13: =Assumptions!D13 -> 62500 | G13: -0.1428571429 | H13: 0.04166666667
A14: Total grants | B14: =SUM(B11:B13) -> 200000 | C14: =SUM(C11:C13) -> 232500 | D14: =Assumptions!D14 -> 259000 | G14: 0.1625 | H14: 0.1139784946
A15: Sponsorships | B15: 15000 | C15: 12000 | D15: =Assumptions!D15 -> 15500 | G15: -0.2 | H15: 0.2916666667
A16: Admissions | B16: 66000 | C16: 68000 | D16: =Assumptions!D16 -> 60000 | G16: 0.0303030303 | H16: -0.1176470588
A17: Gross Retail Sales | B17: 56000 | C17: 58050 | D17: =Assumptions!D17 -> 59500 | G17: 0.03660714286 | H17: 0.02497846684
A18: Public programs & events | B18: 64406 | C18: 44400 | D18: =Assumptions!D18 -> 46126 | G18: -0.3106232339 | H18: 0.03887387387
A19: Fees for Services | B19: 107625 | C19: 123100 | D19: =Assumptions!D19 -> 118194 | G19: 0.143786295 | H19: -0.03985377742
A20: Weather Services | D20: =Assumptions!D20 -> 36000
A21: School (contract/non-contract) | D21: =Assumptions!D21 -> 82194
A22: Annual Fund | B22: 65000 | C22: 90000 | D22: =Assumptions!D22 -> 80000 | G22: =(C22/B22)-1 -> 0.3846153846 | H22: -0.1111111111
A23: Contributions and membership | B23: 49000 | C23: 53000 | D23: =Assumptions!D23 -> 34000 | G23: =(C23/B23)-1 -> 0.08163265306 | H23: -0.358490566
A24: Other Gifts | D24: =Assumptions!D24 -> 55500
A25: Endowment withdrawal | B25: 146000 | C25: =C54 -> 137156 | D25: =Assumptions!D25 -> 75000 | G25: =(C25/B25)-1 -> -0.06057534247 | H25: -0.4531774038
A26: Total revenues | B26: =SUM(B14:B25) -> 769031 | C26: =SUM(C14:C25) -> 818206 | D26: =Assumptions!D26 -> 802820 | G26: =(C26/B26)-1 -> 0.06394410628 | H26: -0.01880455533
A28: Costs
A29: Non-Personnel | B29: 300127 | C29: 256568 | D29: =Assumptions!D29 -> 267299 | G29: =(C29/B29)-1 -> -0.1451352261 | H29: 0.04182516916
A30: Personnel | B30: 489722 | C30: 473853 | D30: =Assumptions!D30 -> 525042 | G30: =(C30/B30)-1 -> -0.03240409865 | H30: 0.108027173
A31: Temporary Staff Positions | D31: =Assumptions!E31 -> 0
A32: Permanent Staff Positions | D32: =Assumptions!E32 -> 0
A33: Programs | B33: 140160 | C33: =Assumptions!C33 -> 444084 | D33: =Assumptions!D33 -> 445659 | G33: =(C33/B33)-1 -> 2.168407534 | H33: 0.003546626314
A34: Weather Services | C34: 49412 | D34: =Assumptions!D34 -> 60323 | H34: 0.2208168056
A35: School (contract/non-contract) | C35: 70848 | D35: =Assumptions!D35 -> 67709 | H35: -0.04430612014
A36: Museum Shop Costs | C36: 40424 | D36: =Assumptions!D36 -> 45619 | H36: 0.1285127647
A37: Collections, Kitchel | C37: 51693 | D37: =Assumptions!D37 -> 81789 | H37: 0.5822064883
A38: Planetarium and Oth. Programs | C38: 69365 | D38: =Assumptions!D38 -> 49700 | H38: -0.2835003244
A39: Exhibits and Planning | C39: 117316 | D39: =Assumptions!D39 -> 93859 | H39: -0.1999471513
A40: Festival, Auction, Visitor, etc. | C40: 45026 | D40: =Assumptions!D40 -> 46660 | H40: 0.03629014347
A41: Facilities and Equipment | B41: 68700 | C41: 88687 | D41: =Assumptions!D41 -> 103087 | G41: 0.2909315866 | H41: 0.1623687801
A42: Administration | B42: 56967 | C42: 131739 | D42: =Assumptions!D42 -> 118631 | H42: -0.09949976848
A43: Development and Marketing | B43: 34300 | C43: 78142 | D43: =Assumptions!D43 -> 91909 | G43: =(C42/B42)-1 -> 1.312549371 | H43: 0.1761792634
A44: Total costs | B44: =SUM(B30:B43) -> 789849 | C44: =SUM(C34:C43) -> 742652 | D44: =SUM(D34:D43) -> 759286 | H44: 0.0223981084
A45: Capital Expense | C45: 11194 | D45: =Assumptions!D45 -> 0 | G45: =(C43/B43)-1 -> 1.27819242 | H45: -1
A46: Expansion Planning | C46: 46581 | D46: =Assumptions!D46 -> 0 | G46: -0.0597544594 | H46: -1
A48: Operating surplus/deficit | B48: =B26-B44 -> -20818 | C48: =C26-C44 -> 75554 | D48: 0 | H48: -1
A50: Endowment | G50: -4.629263138 | H50: =(D48/C48)-1 -> -1
A51: Beginning of year | C51: 1654000 | D51: 1596892 | H51: =(D51/C51)-1 -> -0.03452720677
A52: Add. Endowment Contrib. | C52: 52043 | D52: 52000 | H52: -0.0008262398401
A53: Interest to Investment Income | C53: 132320 | D53: 127751.36 | H53: -0.03452720677
A54: Withdrawal for operations | C54: 137156 | D54: 127041 | H54: -0.0737481408
A55: Withdrawal for Capital Expense/Planning | C55: 57775 | D55: 0 | H55: -1
A56: Special withdrawal | C56: 30000 | D56: 0 | G56: =(C54/B54)-1 ->  | H56: -1
A57: Investment Management Fee | C57: 16540 | D57: 15968.92 | G57: =(C55/B55)-1 ->  | H57: -0.03452720677
A58: End of year | B58: 1654000 | C58: 1596892 | D58: 1633633.44 | G58: =(C56/B56)-1 ->  | H58: 0.02300809322

Sheet Ratio charts
A1: Northern Museum
A2: Prototype Planning Model
